bitfinex/quotes_SOLUSD_20241113
["timestamp","ask_amount","ask_price","bid_price","bid_amount"]
[1731524752706,43.16355816,217.41,217.4,0.092159]
[1731524752906,4.5985,217.46,217.44,0.092159]
[1731524753105,47.76205816,217.46,217.4,0.092159]
[1731524753417,43.16355816,217.43,217.4,0.092159]
[1731524753727,18.398863,217.48,217.47,0.092159]
[1731524753900,4.596,217.58,217.47,0.092159]
[1731524754100,4.596,217.58,217.46,0.1]
[1731524754101,4.596,217.58,217.57,0.092159]
[1731524754403,1.83823,217.58,217.57,0.092159]
[1731524754730,11.4866,217.65,217.57,0.092159]
[1731524754731,43.16355816,217.65,217.62,0.092159]
[1731524754906,0.12549,217.61,217.58,0.092159]
[1731524755220,0.12549,217.61,217.25,43.16355816]
[1731524755221,0.099941,217.54,217.34,43.16355816]
[1731524755423,43.16355816,217.59,217.43,43.16355816]
[1731524755719,2.7586,217.65,217.46,0.1]
[1731524755897,2.7586,217.65,217.37,44.2445]
[1731524755898,23.776884,217.64,217.51,0.1]
[1731524756100,2.7586,217.65,217.51,0.1]
[1731524756411,0.1,217.75,217.37,44.2445]
[1731524756412,4.5947,217.64,217.57,0.1]
[1731524756615,43.16355816,217.63,217.54,43.16355816]
[1731524756821,4.5947,217.64,217.54,43.16355816]
[1731524756997,4.5947,217.64,217.59,43.16355816]
[1731524757198,18.372951,217.71,217.63,43.16355816]
[1731524757504,4.5922,217.76,217.7,43.16355816]
[1731524757700,43.28904816,217.75,217.66,43.16355816]
[1731524757917,43.16355816,217.75,217.66,43.16355816]
[1731524758228,4.5922,217.76,217.68,43.16355816]
[1731524758921,4.5922,217.76,217.7,43.16355816]
[1731524759101,4.5922,217.76,217.68,43.16355816]
[1731524759307,43.16355816,217.75,217.66,43.16355816]
[1731524759725,4.5922,217.76,217.69,43.16355816]
[1731524759928,43.16355816,217.82,217.74,43.16355816]
[1731524760227,43.16355816,217.84,217.76,43.16355816]
[1731524760536,160.5,217.95,217.69,43.16355816]
[1731524760537,4.5873,217.99,217.82,43.26355816]
[1731524760820,43.16355816,217.95,217.87,43.16355816]
[1731524761001,4.5873,217.99,217.85,43.16355816]
[1731524761002,43.16355816,217.93,217.85,43.16355816]
[1731524761198,43.16355816,217.91,217.83,43.16355816]
[1731524761599,0.12549,217.9,217.83,43.16355816]
[1731524761802,160.5,217.97,217.86,43.16355816]
[1731524762016,43.16355816,217.94,217.86,43.16355816]
[1731524762328,22.65947637,217.98,217.88,0.1]
[1731524762623,22.45386222,217.99,217.96,43.16355816]
[1731524763217,100.0,218.0,217.96,43.16355816]
[1731524763422,4.5873,217.99,217.94,43.16355816]
[1731524763619,100.0,218.0,217.99,0.1]
[1731524764126,20.0001,218.0,217.99,0.2]
[1731524764329,0.4777388,218.07,218.04,0.1]
[1731524764624,0.4777388,218.07,217.99,98.47491632]
[1731524764625,43.16355816,218.25,218.1,0.1]
[1731524764801,43.16355816,218.23,218.13,43.16355816]
[1731524765002,43.16355816,218.23,218.16,43.16355816]
[1731524765003,0.12549,218.22,218.16,43.16355816]
[1731524765206,4.581,218.29,218.02,43.16355816]
[1731524765207,43.16355816,218.27,218.18,43.16355816]
[1731524765405,47.74455816,218.29,218.22,43.16355816]
[1731524765616,4.5808,218.3,218.22,43.16355816]
[1731524765810,43.16355816,218.27,218.18,43.16355816]
[1731524766023,0.4777388,218.31,218.25,43.16355816]
[1731524766217,0.4777388,218.31,218.27,43.16355816]
[1731524766420,0.4777388,218.31,218.29,43.16355816]
[1731524766730,43.16355816,218.41,218.3,0.1]
[1731524766904,0.2211356,218.31,218.3,0.2]
[1731524767104,0.5143964,218.44,218.4,0.1]
[1731524767314,0.5143964,218.44,218.43,43.16355816]
[1731524767506,0.5143964,218.44,218.43,43.26355816]
[1731524767731,0.5143964,218.44,218.43,43.16355816]
[1731524767916,0.5143964,218.44,218.43,86.42711632]
[1731524768311,0.5143964,218.44,218.43,43.16355816]
[1731524768511,0.5143964,218.44,218.28,0.1]
[1731524768726,0.5143964,218.44,218.38,43.16355816]
[1731524768906,0.5143964,218.44,218.21,23.776884]
[1731524768907,0.5143964,218.44,218.28,0.1]
[1731524769114,0.12549,218.42,218.26,0.1]
[1731524769529,4.5781,218.43,218.33,0.1]
[1731524769712,4.5781,218.43,218.28,0.1]
[1731524769910,43.28904816,218.42,218.33,43.16355816]
[1731524770134,43.16355816,218.4,218.31,43.26355816]
[1731524770431,43.16355816,218.32,218.23,43.16355816]
[1731524770641,4.5785,218.42,218.02,43.16355816]
[1731524770642,0.12549,218.27,218.19,43.16355816]
[1731524770926,0.12549,218.27,218.15,0.1]
[1731524770927,23.776884,218.26,218.2,43.16355816]
[1731524771130,23.776884,218.26,218.13,0.1]
[1731524771131,23.776884,218.38,218.18,0.1]
[1731524771316,20.0,218.37,218.2,0.1]
[1731524771641,23.776884,218.32,218.13,0.1]
[1731524771812,20.12549,218.29,218.16,0.1]
[1731524772013,20.0,218.25,218.1,12.6351]
[1731524772327,43.16355816,218.19,218.1,43.16355816]
[1731524772516,23.776884,218.1,217.98,43.16355816]
[1731524772824,23.776884,218.1,218.02,43.16355816]
[1731524772825,43.16355816,218.1,218.02,43.16355816]
[1731524773031,23.776884,218.09,218.0,43.16355816]
[1731524773219,43.16355816,218.06,217.96,43.16355816]
[1731524773415,43.16355816,218.1,217.95,0.1]
[1731524773617,160.5,218.17,217.9,12.599]
[1731524773618,23.776884,218.17,218.08,43.16355816]
[1731524773819,23.776884,218.22,218.16,43.16355816]
[1731524774036,31.1814,218.31,218.08,0.1]
[1731524774037,4.581,218.29,218.15,0.1]
[1731524774246,4.581,218.29,218.08,0.12549]
[1731524774247,4.581,218.29,218.17,0.2]
[1731524774535,4.5793,218.37,218.22,0.1]
[1731524774715,4.5793,218.37,218.18,0.1]
[1731524774915,4.5781,218.43,218.22,0.2]
[1731524775111,43.16355816,218.34,218.25,43.16355816]
[1731524775436,6.52147094,218.43,218.33,43.16355816]
[1731524775642,0.5143964,218.44,218.42,43.16355816]
[1731524777237,43.16355816,218.64,218.47,0.1]
[1731524777413,203.76355816,218.68,218.44,20.0]
[1731524777414,0.12549,218.61,218.52,43.16355816]
[1731524777615,43.16355816,218.62,218.54,43.16355816]
[1731524777822,5.0869964,218.7,218.6,43.16355816]
[1731524778035,43.16355816,218.66,218.57,20.7775751]
[1731524778240,43.16355816,218.66,218.51,0.1]
[1731524778241,47.73705816,218.65,218.49,0.1]
[1731524778539,47.73705816,218.65,218.53,43.16355816]
[1731524778540,43.16355816,218.63,218.53,43.16355816]
[1731524778719,43.16355816,218.63,218.54,43.16355816]
[1731524778921,0.12549,218.62,218.54,43.16355816]
[1731524779453,43.16355816,218.58,218.48,43.16355816]
[1731524779613,43.16355816,218.52,218.44,43.16355816]
[1731524779933,20.0,218.49,218.4,43.16355816]
[1731524780139,43.902374,218.41,218.32,43.16355816]
[1731524780331,43.16355816,218.38,218.29,55.76255816]
[1731524780539,20.0,218.45,218.3,0.1]
[1731524780742,43.16355816,218.39,218.3,43.16355816]
[1731524781037,23.776884,218.44,218.36,43.16355816]
[1731524781218,23.776884,218.44,218.29,12.599]
[1731524781219,20.0,218.54,218.43,43.16355816]
[1731524781418,43.16355816,218.47,218.39,43.16355816]
[1731524781615,43.16355816,218.47,218.32,0.1]
[1731524781842,43.16355816,218.49,218.41,43.16355816]
[1731524782136,160.5,218.57,218.35,43.36355816]
[1731524782137,20.0,218.48,218.43,43.16355816]
[1731524782334,43.16355816,218.55,218.45,43.16355816]
[1731524782647,0.12549,218.46,218.31,43.16355816]
[1731524782821,43.16355816,218.39,218.31,43.16355816]
[1731524783143,0.1,218.53,218.29,12.599]
[1731524783329,0.1,218.51,218.29,12.599]
[1731524783533,0.1,218.48,218.29,12.599]
[1731524783837,20.12549,218.5,218.09,30.92]
[1731524783838,0.1,218.42,218.2,0.1]
[1731524784033,0.12549,218.4,218.2,0.1]
[1731524784336,43.16355816,218.34,218.25,43.16355816]
[1731524784542,20.0,218.29,218.21,43.16355816]
[1731524784951,23.902374,218.31,218.23,43.16355816]
[1731524785126,43.16355816,218.3,218.21,43.16355816]
[1731524785440,43.16355816,218.3,218.23,43.16355816]
[1731524785741,20.0,218.29,218.23,43.16355816]
[1731524785924,24.5806,218.31,218.23,43.16355816]
[1731524786540,23.776884,218.29,218.21,43.16355816]
[1731524786745,43.16355816,218.28,218.21,43.16355816]
[1731524786944,63.28904816,218.26,218.17,43.16355816]
[1731524787118,43.16355816,218.24,218.15,43.16355816]
[1731524787321,23.776884,218.25,218.17,43.16355816]
[1731524787619,20.0,218.24,218.17,43.16355816]
[1731524788024,24.5821,218.24,218.17,43.16355816]
[1731524788234,67.74565816,218.24,218.15,43.16355816]
[1731524788420,67.74565816,218.24,218.1,0.1]
[1731524788421,24.5821,218.24,218.17,43.16355816]
[1731524789037,20.0,218.24,218.17,43.16355816]
[1731524789227,23.902374,218.23,218.15,43.16355816]
[1731524789428,43.16355816,218.22,218.13,43.16355816]
[1731524790019,24.5827,218.21,218.15,43.16355816]
[1731524790224,20.0,218.21,218.15,43.16355816]
[1731524790424,43.16355816,218.26,218.17,43.16355816]
[1731524790620,43.776884,218.25,218.17,43.16355816]
[1731524790824,20.0,218.25,218.17,43.16355816]
[1731524791124,43.16355816,218.24,218.17,43.16355816]
[1731524791329,20.0,218.25,218.17,43.16355816]
[1731524791542,23.776884,218.21,218.13,43.16355816]
[1731524791745,43.16355816,218.22,218.13,43.16355816]
[1731524791940,20.0,218.25,218.19,43.16355816]
[1731524792130,20.0,218.27,218.19,43.16355816]
[1731524792328,20.0,218.29,218.21,43.16355816]
[1731524792645,43.16355816,218.22,218.1,43.16355816]
[1731524792853,0.12549,218.21,218.05,13.0761]
[1731524793148,43.16355816,218.1,218.01,43.16355816]
[1731524793753,43.16355816,218.1,217.97,0.1]
[1731524793754,43.16355816,218.06,217.97,43.16355816]
[1731524794122,43.16355816,218.13,217.84,30.8046]
[1731524794123,43.16355816,217.98,217.88,43.16355816]
[1731524794324,43.16355816,217.98,217.84,12.5368]
[1731524794325,43.16355816,217.92,217.84,43.16355816]
[1731524794829,43.16355816,217.93,217.84,43.16355816]
[1731524795457,43.16355816,217.96,217.87,43.16355816]
[1731524795624,43.16355816,217.89,217.79,0.5143964]
[1731524795946,43.16355816,217.83,217.79,0.5143964]
[1731524796131,0.12549,217.81,217.79,0.5143964]
[1731524796323,43.902374,217.8,217.79,0.5143964]
[1731524796846,23.776884,217.77,217.54,0.1]
[1731524797041,0.1,217.72,217.53,0.5143964]
[1731524797236,43.16355816,217.64,217.55,43.16355816]
[1731524797437,43.16355816,217.58,217.53,0.5143964]
[1731524797943,0.1,217.68,217.53,0.5143964]
[1731524797944,43.16355816,217.6,217.53,0.5143964]
[1731524798129,43.16355816,217.65,217.55,43.16355816]
[1731524798323,0.1,217.77,217.53,0.5143964]
[1731524798324,43.16355816,217.69,217.6,43.16355816]
[1731524798527,43.16355816,217.64,217.53,0.5143964]
[1731524799040,43.16355816,217.64,217.55,43.16355816]
[1731524799443,43.16355816,217.62,217.53,43.67795456]
[1731524799638,43.16355816,217.58,217.53,0.5143964]
[1731524800155,43.16355816,217.6,217.53,0.5143964]
[1731524800334,43.16355816,217.62,217.53,43.67795456]
[1731524800537,43.776884,217.61,217.53,43.67795456]
[1731524800855,23.776884,217.63,217.55,43.16355816]
[1731524801056,4.5947,217.64,217.59,43.16355816]
[1731524801235,43.16355816,217.61,217.53,0.5143964]
[1731524801436,43.16355816,217.62,217.53,43.67795456]
[1731524801752,66.94044216,217.65,217.57,43.16355816]
[1731524801931,24.5943,217.66,217.53,0.5143964]
[1731524801932,23.902374,217.62,217.53,0.5143964]
[1731524802130,20.0,217.66,217.53,0.5143964]
[1731524802131,23.902374,217.6,217.53,0.5143964]
[1731524802653,23.902374,217.58,217.53,0.5143964]
[1731524803028,43.16355816,217.55,217.53,0.5143964]
[1731524803446,23.902374,217.54,217.53,0.5143964]
[1731524803952,23.776884,217.56,217.53,0.5143964]
[1731524804142,23.902374,217.54,217.53,0.5143964]
[1731524805435,0.12549,217.53,217.44,20.0]
[1731524805642,23.776884,217.52,217.45,43.16355816]
[1731524806053,47.76015816,217.55,217.45,43.16355816]
[1731524806355,23.902374,217.54,217.47,43.16355816]
[1731524806735,0.12549,217.54,217.49,43.16355816]
[1731524806939,43.16355816,217.63,217.53,43.16355816]
[1731524807159,0.12549,217.62,217.53,43.16355816]
[1731524807456,43.16355816,217.67,217.59,43.16355816]
[1731524807636,47.75765816,217.67,217.59,43.16355816]
[1731524807957,4.5937,217.69,217.63,43.16355816]
[1731524808336,47.75595816,217.75,217.67,43.16355816]
[1731524808548,4.5924,217.75,217.69,43.16355816]
[1731524808857,4.5924,217.75,217.71,43.16355816]
[1731524809155,160.599941,217.84,217.58,43.16355816]
[1731524809156,43.16355816,217.81,217.73,43.16355816]
[1731524809449,171.9763,217.84,217.73,43.16355816]
[1731524809450,4.5913,217.8,217.73,43.16355816]
[1731524810352,0.12549,217.77,217.75,43.16355816]
[1731524810546,4.5917,217.78,217.75,43.16355816]
[1731524810940,4.5917,217.78,217.73,43.16355816]
[1731524811249,4.5917,217.78,217.71,43.16355816]
[1731524811840,86.32711632,217.72,217.47,0.1]
[1731524812042,43.16355816,217.56,217.46,43.16355816]
[1731524812356,43.16355816,217.57,217.49,43.16355816]
[1731524812541,23.776884,217.6,217.46,0.1]
[1731524812848,0.12549,217.62,217.46,0.1]
[1731524813050,0.12549,217.62,217.47,0.1]
[1731524813256,0.12549,217.62,217.43,0.1]
[1731524813465,20.225431,217.62,217.38,12.352]
[1731524813634,43.16355816,217.54,217.45,43.16355816]
[1731524814362,43.16355816,217.54,217.43,43.16355816]
[1731524814563,23.776884,217.56,217.47,43.16355816]
[1731524814753,4.5962,217.57,217.49,43.16355816]
[1731524815437,67.06593216,217.56,217.47,43.16355816]
[1731524815653,43.16355816,217.54,217.45,43.16355816]
[1731524815853,0.12549,217.53,217.45,43.16355816]
[1731524816356,66.94044216,217.56,217.47,43.16355816]
[1731524816565,23.776884,217.57,217.49,43.16355816]
[1731524817558,43.28904816,217.56,217.47,43.16355816]
[1731524818042,43.16355816,217.6,217.51,43.16355816]
[1731524818340,43.16355816,217.62,217.53,43.16355816]
[1731524818541,43.16355816,217.62,217.55,43.16355816]
[1731524818740,43.16355816,217.68,217.59,43.16355816]
[1731524819244,43.16355816,217.72,217.63,43.16355816]
[1731524819451,43.16355816,217.74,217.65,43.16355816]
[1731524820053,43.16355816,217.74,217.58,43.16355816]
[1731524820054,43.16355816,217.68,217.59,43.16355816]
[1731524820359,43.16355816,217.74,217.64,43.16355816]
[1731524820661,4.593,217.72,217.64,43.16355816]
[1731524820851,47.75625816,217.74,217.64,43.16355816]
[1731524821036,43.16355816,217.7,217.62,43.16355816]
[1731524821239,43.16355816,217.68,217.6,43.16355816]
[1731524821439,43.16355816,217.61,217.42,0.1]
[1731524821653,43.26349916,217.69,217.45,43.16355816]
[1731524821654,43.16355816,217.54,217.45,43.16355816]
[1731524821836,43.16355816,217.54,217.46,43.16355816]
[1731524822064,43.16355816,217.54,217.44,43.16355816]
[1731524822244,0.12549,217.6,217.44,43.16355816]
[1731524822245,43.16355816,217.52,217.44,43.16355816]
[1731524822548,43.16355816,217.56,217.46,43.16355816]
[1731524822756,0.1,217.75,217.54,43.16355816]
[1731524822948,0.1,217.75,217.6,42.86250124]
[1731524822949,43.16355816,217.69,217.6,42.86250124]
[1731524823255,0.12549,217.71,217.43,0.1]
[1731524823556,0.12549,217.71,217.46,0.1]
[1731524823763,0.225431,217.71,217.43,0.2]
[1731524823954,0.12549,217.68,217.43,0.1]
[1731524824154,43.16355816,217.6,217.52,43.16355816]
[1731524824360,43.16355816,217.58,217.5,43.16355816]
[1731524824563,43.16355816,217.56,217.48,43.16355816]
[1731524824753,4.5966,217.55,217.48,43.16355816]
[1731524824956,4.5966,217.55,217.46,43.16355816]
[1731524825465,43.16355816,217.54,217.46,43.16355816]
[1731524826571,43.16355816,217.56,217.46,43.16355816]
[1731524826869,4.5943,217.66,217.54,43.16355816]
[1731524827076,43.16355816,217.64,217.54,43.16355816]
[1731524827277,0.1,217.75,217.47,43.16355816]
[1731524827278,43.16355816,217.71,217.62,43.16355816]
[1731524827455,4.5929,217.73,217.66,43.16355816]
[1731524827772,47.75645816,217.73,217.64,43.16355816]
[1731524828066,47.75645816,217.73,217.58,43.16355816]
[1731524828067,47.75605816,217.75,217.68,43.16355816]
[1731524828271,43.16355816,217.73,217.64,43.16355816]
[1731524828564,18.373394,217.74,217.56,0.1]
[1731524828753,4.71849,217.72,217.54,0.1]
[1731524828952,0.12549,217.68,217.6,43.16355816]
[1731524829150,4.593,217.72,217.58,43.16355816]
[1731524829151,43.16355816,217.67,217.58,43.16355816]
[1731524829368,160.599941,217.76,217.58,43.16355816]
[1731524829369,31.1881,217.8,217.61,0.1]
[1731524829555,31.1881,217.8,217.73,43.16355816]
[1731524829556,4.5915,217.79,217.73,43.16355816]
[1731524829872,18.365097,217.83,217.77,43.16355816]
[1731524830088,18.365097,217.83,217.82,43.16355816]
[1731524830254,43.16355816,217.97,217.82,43.16355816]
[1731524830450,43.16355816,217.91,217.83,43.16355816]
[1731524830773,43.16355816,217.85,217.77,43.16355816]
[1731524830977,43.16355816,217.81,217.73,43.16355816]
[1731524831184,4.5901,217.86,217.58,12.6615]
[1731524831185,43.16355816,217.85,217.75,43.16355816]
[1731524831348,43.16355816,217.83,217.73,43.16355816]
[1731524831670,4.5901,217.86,217.78,43.16355816]
[1731524831882,43.16355816,217.93,217.84,43.16355816]
[1731524832052,4.5884,217.94,217.86,43.16355816]
[1731524832253,4.5884,217.94,217.88,43.16355816]
[1731524832561,47.80523736,217.95,217.86,43.16355816]
[1731524832951,43.16355816,217.91,217.82,43.16355816]
[1731524833266,43.16355816,217.89,217.8,43.16355816]
[1731524833672,43.16355816,217.85,217.75,43.16355816]
[1731524833881,43.16355816,217.85,217.69,43.16355816]
[1731524833882,43.16355816,217.83,217.74,43.16355816]
[1731524834068,43.16355816,217.79,217.7,43.16355816]
[1731524834574,0.12549,217.88,217.51,30.1521]
[1731524834575,43.16355816,217.83,217.74,43.16355816]
[1731524834872,43.16355816,217.83,217.61,0.12549]
[1731524834873,4.5922,217.76,217.68,43.16355816]
[1731524835173,4.5922,217.76,217.7,43.16355816]
[1731524835395,4.5922,217.76,217.68,43.16355816]
[1731524835575,4.5918,217.78,217.7,43.16355816]
[1731524836061,4.5918,217.78,217.72,43.16355816]
[1731524836262,4.5918,217.78,217.7,43.16355816]
[1731524836560,47.75355816,217.87,217.76,43.16355816]
[1731524836761,4.5903,217.85,217.78,43.16355816]
[1731524837055,4.5893,217.9,217.84,43.16355816]
[1731524837265,4.5884,217.94,217.88,43.16355816]
[1731524837795,4.5884,217.94,217.84,43.16355816]
[1731524837982,4.5884,217.94,217.82,43.16355816]
[1731524837983,43.16355816,217.91,217.82,43.16355816]
[1731524838287,43.16355816,217.87,217.78,43.16355816]
[1731524838464,43.16355816,217.85,217.76,43.16355816]
[1731524838857,0.12549,217.82,217.72,43.16355816]
[1731524839180,43.16355816,217.83,217.74,43.16355816]
[1731524839379,0.099941,217.92,217.58,55.82505816]
[1731524839380,43.16355816,217.87,217.78,43.16355816]
[1731524839586,4.5902,217.86,217.8,43.16355816]
[1731524839757,4.5902,217.86,217.69,43.16355816]
[1731524839758,4.5902,217.86,217.78,43.16355816]
[1731524839956,43.16355816,217.85,217.76,43.16355816]
[1731524840481,43.16355816,217.85,217.69,43.16355816]
[1731524840482,0.12549,217.81,217.72,43.16355816]
[1731524840683,43.16355816,217.77,217.68,43.16355816]
[1731524840860,4.5926,217.74,217.66,43.16355816]
[1731524841064,4.5926,217.74,217.68,43.16355816]
[1731524842083,43.16355816,217.71,217.62,43.16355816]
[1731524842661,43.16355816,217.73,217.64,43.16355816]
[1731524842859,16.0727,217.76,217.69,43.16355816]
[1731524843058,23.776884,217.75,217.69,43.16355816]
[1731524843273,4.5922,217.76,217.69,43.16355816]
[1731524843485,4.5922,217.76,217.58,43.26355816]
[1731524843486,4.5922,217.76,217.71,43.16355816]
[1731524843857,0.89764814,217.71,217.46,0.2]
[1731524844076,23.776884,217.65,217.57,43.16355816]
[1731524844278,43.16355816,217.68,217.59,43.16355816]
[1731524844484,4.5936,217.69,217.63,43.16355816]
[1731524844863,4.5936,217.69,217.59,43.16355816]
[1731524844864,43.16355816,217.68,217.59,43.16355816]
[1731524845069,66.94044216,217.68,217.49,13.0118]
[1731524845287,23.902374,217.65,217.57,43.16355816]
[1731524845974,47.75825816,217.64,217.55,43.16355816]
[1731524847370,43.16355816,217.62,217.55,43.16355816]
[1731524847678,4.5947,217.64,217.59,43.16355816]
[1731524847978,4.5947,217.64,217.58,43.16355816]
[1731524848196,43.16355816,217.63,217.56,43.16355816]
[1731524848888,4.5947,217.64,217.56,43.16355816]
[1731524849180,43.16355816,217.63,217.54,43.16355816]
[1731524849785,43.16355816,217.55,217.48,43.16355816]
[1731524849989,43.16355816,217.55,217.46,43.16355816]
[1731524850172,43.16355816,217.53,217.46,43.16355816]
[1731524850378,43.16355816,217.53,217.44,43.16355816]
[1731524850575,43.16355816,217.55,217.46,43.16355816]
[1731524850882,43.16355816,217.55,217.36,43.16355816]
[1731524850883,43.16355816,217.59,217.5,43.16355816]
[1731524851185,16.0919,217.5,217.32,12.5952]
[1731524851392,43.16355816,217.42,217.34,43.16355816]
[1731524851683,43.16355816,217.4,217.32,43.16355816]
[1731524851893,43.16355816,217.42,217.32,43.16355816]
[1731524852075,43.16355816,217.4,217.32,43.16355816]
[1731524852580,43.16355816,217.44,217.36,43.16355816]
[1731524852760,43.16355816,217.44,217.34,43.16355816]
[1731524852960,43.16355816,217.4,217.3,43.16355816]
[1731524853266,43.16355816,217.38,217.23,12.6952]
[1731524853567,22.83253339,217.39,217.3,43.16355816]
[1731524853765,4.6,217.39,217.35,43.16355816]
[1731524853965,4.5987,217.45,217.37,43.16355816]
[1731524854167,23.776884,217.44,217.37,43.16355816]
[1731524854472,43.16355816,217.44,217.35,43.16355816]
[1731524854677,23.776884,217.43,217.35,43.16355816]
[1731524854877,0.12549,217.41,217.33,43.16355816]
[1731524855076,0.12549,217.43,217.37,43.16355816]
[1731524855271,23.902374,217.41,217.33,43.16355816]
[1731524855477,23.902374,217.39,217.31,43.16355816]
[1731524855770,0.12549,217.35,217.27,43.16355816]
[1731524856292,47.717041,217.42,217.33,43.16355816]
[1731524856293,79.28225816,217.42,217.33,43.16355816]
[1731524856495,43.16355816,217.5,217.41,43.16355816]
[1731524856667,4.5979,217.49,217.46,43.16355816]
[1731524856862,31.5194,217.51,217.46,43.16355816]
[1731524857064,43.16355816,217.58,217.5,43.16355816]
[1731524857283,43.16355816,217.58,217.38,0.1]
[1731524857284,4.5951,217.62,217.54,43.16355816]
[1731524857468,4.5948,217.64,217.58,43.16355816]
[1731524857675,4.594,217.68,217.62,43.16355816]
[1731524857879,4.594,217.68,217.63,43.16355816]
[1731524858088,0.12549,217.67,217.58,43.16355816]
[1731524858275,4.5934,217.71,217.63,43.16355816]
[1731524858583,4.5934,217.71,217.58,43.16355816]
[1731524858790,4.5934,217.71,217.69,43.16355816]
[1731524859285,43.16355816,217.75,217.65,43.16355816]
[1731524859489,43.16355816,217.73,217.65,43.16355816]
[1731524859693,16.0727,217.76,217.58,43.16355816]
[1731524859694,4.5922,217.76,217.59,0.1]
[1731524860003,11.4776,217.82,217.58,43.16355816]
[1731524860004,47.75315816,217.88,217.75,43.16355816]
[1731524860168,47.75315816,217.88,217.8,43.16355816]
[1731524860368,4.5896,217.88,217.82,43.16355816]
[1731524861288,43.16355816,217.94,217.85,43.16355816]
[1731524861493,43.16355816,217.92,217.83,43.16355816]
[1731524861664,0.12549,217.91,217.83,43.16355816]
[1731524861866,43.16355816,217.92,217.83,43.16355816]
[1731524862163,43.16355816,217.9,217.81,43.16355816]
[1731524862770,43.16355816,217.88,217.79,43.16355816]
[1731524863181,43.16355816,217.9,217.81,43.16355816]
[1731524863385,4.5894,217.89,217.85,43.16355816]
[1731524863574,4.5884,217.94,217.87,43.16355816]
[1731524863785,4.5884,217.94,217.9,43.16355816]
[1731524863991,4.5884,217.94,217.92,43.16355816]
[1731524864289,0.0533792,217.95,217.92,43.16355816]
[1731524864505,0.0533792,217.95,217.8,43.16355816]
[1731524864506,4.6416792,217.95,217.88,43.16355816]
[1731524864670,4.6416792,217.95,217.9,43.16355816]
[1731524865297,4.6416792,217.95,217.83,43.16355816]
[1731524865298,0.12549,217.91,217.83,43.16355816]
[1731524865481,4.5886,217.93,217.89,43.16355816]
[1731524865681,4.5886,217.93,217.8,43.16355816]
[1731524865682,4.5886,217.93,217.87,43.16355816]
[1731524865995,67.06593216,217.92,217.83,43.16355816]
[1731524866185,23.902374,217.86,217.65,13.004]
[1731524866373,20.0,217.83,217.67,0.1]
[1731524866570,20.0,217.83,217.65,13.104]
[1731524866571,23.902374,217.88,217.65,13.004]
[1731524866776,23.902374,217.84,217.65,13.004]
[1731524866989,0.12549,217.8,217.65,13.004]
[1731524867289,43.16355816,217.66,217.55,43.16355816]
[1731524867492,20.0,217.68,217.47,43.26355816]
[1731524867493,0.12549,217.63,217.53,43.16355816]
[1731524867702,4.5945,217.65,217.48,0.1]
[1731524867703,4.5945,217.65,217.58,43.16355816]
[1731524867881,63.16355816,217.68,217.51,0.1712258]
[1731524867882,4.5941,217.68,217.6,43.16355816]
[1731524868082,4.5941,217.68,217.51,0.1712258]
[1731524868083,43.776884,217.67,217.51,0.1712258]
[1731524868273,43.16355816,217.56,217.51,0.1712258]
[1731524868474,0.099941,217.65,217.51,0.1712258]
[1731524868475,43.16355816,217.58,217.51,0.1712258]
[1731524868698,216.05924738,217.67,217.51,0.1712258]
[1731524868699,43.16355816,217.56,217.51,0.1712258]
[1731524868875,43.16355816,217.52,217.51,0.1712258]
[1731524869497,4.5972,217.52,217.51,0.1712258]
[1731524869891,47.76075816,217.52,217.51,0.1712258]
[1731524870196,43.16355816,217.54,217.51,0.1712258]
[1731524870376,43.16355816,217.52,217.51,0.1712258]
[1731524870578,4.596,217.58,217.51,0.1712258]
[1731524870881,43.16355816,217.6,217.51,43.33478396]
[1731524871079,4.5943,217.66,217.51,0.1712258]
[1731524871383,4.5947,217.64,217.51,0.1712258]
[1731524871588,23.902374,217.63,217.51,0.1712258]
[1731524871796,0.225431,217.56,217.29,0.4286397]
[1731524872001,43.16355816,217.39,217.29,43.59219786]
[1731524872205,43.16355816,217.37,217.29,0.4286397]
[1731524872884,43.16355816,217.41,217.31,43.16355816]
[1731524873089,43.16355816,217.37,217.29,0.4286397]
[1731524873397,0.12549,217.44,217.29,0.4286397]
[1731524873398,4.601,217.34,217.29,0.4286397]
[1731524874299,43.16355816,217.33,217.29,0.4286397]
[1731524874804,4.6,217.4,217.31,43.16355816]